[Event "Late-Titled-Tuesday-Blitz-March-26-2024"]
[Site "Chess.com"]
[Date "2024.03.26"]
[Round "11"]
[White "Revan_2002"]
[Black "BardArtem"]
[Result "0-1"]
[WhiteElo "2659"]
[BlackElo "2828"]
[TimeControl "180+1"]
[EndTime "16:04:53 PDT"]
[Termination "BardArtem won on time"]

1. Nf3 {[%clk 0:02:59.9]} 1... d5 {[%clk 0:02:59.3]} 2. g3 {[%clk 0:03:00.4]}
2... Nc6 {[%clk 0:02:56.3]} 3. d4 {[%clk 0:02:59.2]} 3... Bf5 {[%clk 0:02:56.4]}
4. Bg2 {[%clk 0:02:59.6]} 4... Nb4 {[%clk 0:02:56.3]} 5. Na3 {[%clk 0:02:59.4]}
5... e6 {[%clk 0:02:56.8]} 6. c3 {[%clk 0:02:59.7]} 6... Nc6 {[%clk 0:02:56.5]}
7. Nc2 {[%clk 0:02:56.4]} 7... Be7 {[%clk 0:02:54.2]} 8. O-O {[%clk 0:02:56.4]}
8... Nf6 {[%clk 0:02:54.3]} 9. Ne3 {[%clk 0:02:56.4]} 9... Be4 {[%clk
0:02:53.8]} 10. b3 {[%clk 0:02:55.2]} 10... O-O {[%clk 0:02:53.2]} 11. Bb2
{[%clk 0:02:55]} 11... Nb8 {[%clk 0:02:48.2]} 12. Rc1 {[%clk 0:02:53]} 12...
Nbd7 {[%clk 0:02:48.1]} 13. c4 {[%clk 0:02:53]} 13... c6 {[%clk 0:02:47.4]} 14.
a3 {[%clk 0:02:48.2]} 14... h6 {[%clk 0:02:42.5]} 15. Bh3 {[%clk 0:02:34.5]}
15... Bd6 {[%clk 0:02:36.9]} 16. Nd2 {[%clk 0:02:32.9]} 16... Bh7 {[%clk
0:02:32.5]} 17. Bg2 {[%clk 0:02:33.3]} 17... Qe7 {[%clk 0:02:32.2]} 18. b4
{[%clk 0:02:10.5]} 18... a5 {[%clk 0:02:31.5]} 19. c5 {[%clk 0:02:06.8]} 19...
Bc7 {[%clk 0:02:31.4]} 20. f4 {[%clk 0:02:06.7]} 20... axb4 {[%clk 0:02:30.1]}
21. axb4 {[%clk 0:02:06]} 21... b5 {[%clk 0:02:20.1]} 22. Qb3 {[%clk 0:02:01.5]}
22... h5 {[%clk 0:02:02.7]} 23. Ra1 {[%clk 0:01:58.4]} 23... h4 {[%clk
0:02:01.9]} 24. Rxa8 {[%clk 0:01:57.9]} 24... Rxa8 {[%clk 0:02:01.4]} 25. Ra1
{[%clk 0:01:58.3]} 25... Rxa1+ {[%clk 0:02:00.7]} 26. Bxa1 {[%clk 0:01:59.2]}
26... hxg3 {[%clk 0:01:52.6]} 27. hxg3 {[%clk 0:01:58.8]} 27... g5 {[%clk
0:01:49.8]} 28. fxg5 {[%clk 0:01:31.8]} 28... Nh5 {[%clk 0:01:49.6]} 29. Qa3
{[%clk 0:01:29.8]} 29... Qxg5 {[%clk 0:01:39.2]} 30. Qa8+ {[%clk 0:01:29.1]}
30... Kg7 {[%clk 0:01:36.4]} 31. Ndf1 {[%clk 0:01:08.8]} 31... Nxg3 {[%clk
0:01:22.3]} 32. Qxc6 {[%clk 0:01:06.9]} 32... Bf4 {[%clk 0:01:14.6]} 33. Nxd5
{[%clk 0:00:39.1]} 33... exd5 {[%clk 0:01:04.3]} 34. Qxd5 {[%clk 0:00:26.2]}
34... Be3+ {[%clk 0:00:44.7]} 35. Nxe3 {[%clk 0:00:25.8]} 35... Qxe3+ {[%clk
0:00:45.6]} 36. Kh2 {[%clk 0:00:26.3]} 36... Nxe2 {[%clk 0:00:46.1]} 37. Qxd7
{[%clk 0:00:12.4]} 37... Qg3+ {[%clk 0:00:24.7]} 38. Kh1 {[%clk 0:00:11.8]}
38... Qe1+ {[%clk 0:00:14.8]} 39. Kh2 {[%clk 0:00:12]} 39... Qg3+ {[%clk
0:00:05.6]} 40. Kh1 {[%clk 0:00:12]} 40... Qh4+ {[%clk 0:00:06.5]} 41. Qh3
{[%clk 0:00:06.2]} 41... Qe1+ {[%clk 0:00:07.1]} 42. Bf1 {[%clk 0:00:05.4]}
42... Be4+ {[%clk 0:00:07]} 43. Kh2 {[%clk 0:00:04.8]} 43... Qf2+ {[%clk
0:00:07.5]} 44. Bg2 {[%clk 0:00:03.5]} 44... Qf4+ {[%clk 0:00:08.2]} 45. Kh1
{[%clk 0:00:03.6]} 45... Ng3+ {[%clk 0:00:06.1]} 46. Kg1 {[%clk 0:00:01.9]}
46... Ne2+ {[%clk 0:00:06.2]} 47. Kh1 {[%clk 0:00:02]} 47... Bf5 {[%clk
0:00:05.9]} 48. Qf3 {[%clk 0:00:01.2]} 48... Qh4+ {[%clk 0:00:04.8]} 0-1

[Event "Late-Titled-Tuesday-Blitz-March-26-2024"]
[Site "Chess.com"]
[Date "2024.03.26"]
[Round "11"]
[White "mbojan"]
[Black "only_strong_moves"]
[Result "1-0"]
[WhiteElo "2905"]
[BlackElo "2702"]
[TimeControl "180+1"]
[EndTime "16:04:58 PDT"]
[Termination "mbojan won by resignation"]

1. e4 {[%clk 0:03:00.9]} 1... e5 {[%clk 0:02:59.3]} 2. Nf3 {[%clk 0:03:01.2]}
2... Nc6 {[%clk 0:02:59.6]} 3. Bb5 {[%clk 0:03:01.5]} 3... a6 {[%clk 0:02:59.8]}
4. Ba4 {[%clk 0:03:02.1]} 4... Nge7 {[%clk 0:03:00.1]} 5. O-O {[%clk 0:02:58.6]}
5... Ng6 {[%clk 0:02:59.4]} 6. c3 {[%clk 0:02:57.4]} 6... d5 {[%clk 0:02:59.1]}
7. exd5 {[%clk 0:02:58.3]} 7... Qxd5 {[%clk 0:02:59.3]} 8. Bb3 {[%clk 0:02:59]}
8... Qd3 {[%clk 0:02:48.5]} 9. Bc2 {[%clk 0:02:59.1]} 9... Qd5 {[%clk
0:02:39.6]} 10. Bb3 {[%clk 0:02:57.9]} 10... Qd3 {[%clk 0:02:39]} 11. Bc2 {[%clk
0:02:58.6]} 11... Qd5 {[%clk 0:02:38.8]} 12. d4 {[%clk 0:02:59.3]} 12... Bg4
{[%clk 0:02:38.2]} 13. dxe5 {[%clk 0:02:37.2]} 13... Bxf3 {[%clk 0:02:36.8]} 14.
Qxf3 {[%clk 0:02:35.6]} 14... Qxf3 {[%clk 0:02:37.3]} 15. gxf3 {[%clk
0:02:36.5]} 15... Ngxe5 {[%clk 0:02:27.5]} 16. Kg2 {[%clk 0:02:25.7]} 16...
O-O-O {[%clk 0:02:22.7]} 17. Nd2 {[%clk 0:02:23]} 17... Nd3 {[%clk 0:02:01.5]}
18. Ne4 {[%clk 0:02:22.7]} 18... Nxc1 {[%clk 0:02:01.3]} 19. Raxc1 {[%clk
0:02:23.6]} 19... h6 {[%clk 0:01:58.9]} 20. Bb3 {[%clk 0:02:20.1]} 20... f6
{[%clk 0:01:25.6]} 21. Rcd1 {[%clk 0:02:19.5]} 21... Be7 {[%clk 0:01:24.9]} 22.
Ng3 {[%clk 0:02:18.1]} 22... Bd6 {[%clk 0:01:16.6]} 23. Nf5 {[%clk 0:02:14.5]}
23... g6 {[%clk 0:01:14.4]} 24. Nxd6+ {[%clk 0:01:51.8]} 24... cxd6 {[%clk
0:01:15.3]} 25. Rfe1 {[%clk 0:01:48.6]} 25... Rhf8 {[%clk 0:01:14.5]} 26. Bc2
{[%clk 0:01:35.2]} 26... Kd7 {[%clk 0:01:04.9]} 27. h4 {[%clk 0:01:32.7]} 27...
f5 {[%clk 0:01:03.1]} 28. h5 {[%clk 0:01:27.4]} 28... gxh5 {[%clk 0:00:58.2]}
29. f4 {[%clk 0:01:27.9]} 29... Ne7 {[%clk 0:00:53.3]} 30. Kf3 {[%clk
0:01:21.5]} 30... Ng6 {[%clk 0:00:43.6]} 31. Rh1 {[%clk 0:01:21.8]} 31... h4
{[%clk 0:00:42]} 32. Rdg1 {[%clk 0:01:22]} 32... Ne7 {[%clk 0:00:33.4]} 33. Rxh4
{[%clk 0:01:21.6]} 33... Rf6 {[%clk 0:00:34]} 34. Rg7 {[%clk 0:01:19.3]} 34...
Re8 {[%clk 0:00:33.9]} 35. Rh7 {[%clk 0:01:18.9]} 35... Rg8 {[%clk 0:00:27]} 36.
R4xh6 {[%clk 0:01:08.7]} 36... Rxh6 {[%clk 0:00:27.9]} 37. Rxh6 {[%clk
0:01:09.6]} 37... Rg1 {[%clk 0:00:28.6]} 38. Rh7 {[%clk 0:01:10.2]} 38... Ke6
{[%clk 0:00:28.1]} 39. Bb3+ {[%clk 0:01:09.4]} 39... d5 {[%clk 0:00:27.5]} 40.
Rh6+ {[%clk 0:01:09.5]} 40... Kd7 {[%clk 0:00:27.4]} 41. Ba4+ {[%clk 0:00:50.1]}
41... b5 {[%clk 0:00:27.1]} 42. Bb3 {[%clk 0:00:50.5]} 42... a5 {[%clk
0:00:27.7]} 43. a4 {[%clk 0:00:48.5]} 43... b4 {[%clk 0:00:22.6]} 44. cxb4
{[%clk 0:00:46.2]} 44... axb4 {[%clk 0:00:23.5]} 45. a5 {[%clk 0:00:45.3]} 45...
Nc6 {[%clk 0:00:14.4]} 46. Ba4 {[%clk 0:00:44.5]} 46... Rc1 {[%clk 0:00:13.2]}
47. Ke3 {[%clk 0:00:32.5]} 47... Kc7 {[%clk 0:00:06.2]} 48. Rxc6+ {[%clk
0:00:31.6]} 48... Rxc6 {[%clk 0:00:07.1]} 49. Bxc6 {[%clk 0:00:32.1]} 49... Kxc6
{[%clk 0:00:08]} 50. Kd4 {[%clk 0:00:32.8]} 50... Kb5 {[%clk 0:00:08.7]} 51. b3
{[%clk 0:00:25.2]} 51... Kxa5 {[%clk 0:00:08.9]} 52. Kxd5 {[%clk 0:00:25.7]}
52... Kb5 {[%clk 0:00:09.7]} 53. Kd4 {[%clk 0:00:23.3]} 53... Kb6 {[%clk
0:00:07.1]} 54. Kc4 {[%clk 0:00:20.6]} 54... Kc6 {[%clk 0:00:08]} 55. Kxb4
{[%clk 0:00:21]} 55... Kd5 {[%clk 0:00:08.9]} 56. Kc3 {[%clk 0:00:20.4]} 56...
Ke4 {[%clk 0:00:09.8]} 57. b4 {[%clk 0:00:20.7]} 57... Kxf4 {[%clk 0:00:10.7]}
58. b5 {[%clk 0:00:19.4]} 58... Kf3 {[%clk 0:00:11.6]} 59. b6 {[%clk 0:00:19.9]}
59... Kxf2 {[%clk 0:00:12.5]} 60. b7 {[%clk 0:00:20.5]} 60... f4 {[%clk
0:00:13.4]} 61. b8=Q {[%clk 0:00:21.1]} 61... f3 {[%clk 0:00:14.3]} 62. Qh2+
{[%clk 0:00:20.6]} 62... Kf1 {[%clk 0:00:14.5]} 63. Qh3+ {[%clk 0:00:20.2]}
63... Ke2 {[%clk 0:00:14.3]} 64. Qg4 {[%clk 0:00:20.2]} 64... Ke3 {[%clk
0:00:14.2]} 65. Qd4+ {[%clk 0:00:20]} 65... Ke2 {[%clk 0:00:14.5]} 66. Qe4+
{[%clk 0:00:20.2]} 66... Kf2 {[%clk 0:00:14.7]} 67. Kd2 {[%clk 0:00:20.6]} 1-0

[Event "Late-Titled-Tuesday-Blitz-March-26-2024"]
[Site "Chess.com"]
[Date "2024.03.26"]
[Round "11"]
[White "UK_23"]
[Black "noblerone"]
[Result "1/2-1/2"]
[WhiteElo "2402"]
[BlackElo "2522"]
[TimeControl "180+1"]
[EndTime "16:04:59 PDT"]
[Termination "Game drawn by repetition"]

1. e4 {[%clk 0:03:00.9]} 1... c5 {[%clk 0:02:54.1]} 2. Nf3 {[%clk 0:03:00]} 2...
e6 {[%clk 0:02:50.7]} 3. g3 {[%clk 0:02:59.6]} 3... Nf6 {[%clk 0:02:47.6]} 4.
Qe2 {[%clk 0:02:56.7]} 4... Nc6 {[%clk 0:02:46.2]} 5. Bg2 {[%clk 0:02:56.3]}
5... d6 {[%clk 0:02:44.3]} 6. O-O {[%clk 0:02:56]} 6... Be7 {[%clk 0:02:43.5]}
7. Rd1 {[%clk 0:02:56.2]} 7... O-O {[%clk 0:02:34.7]} 8. d4 {[%clk 0:02:56.5]}
8... cxd4 {[%clk 0:02:34.9]} 9. Nxd4 {[%clk 0:02:57.4]} 9... Nxd4 {[%clk
0:02:32.3]} 10. Rxd4 {[%clk 0:02:58.3]} 10... Qc7 {[%clk 0:02:32.4]} 11. c4
{[%clk 0:02:55.7]} 11... a6 {[%clk 0:02:27.1]} 12. Nc3 {[%clk 0:02:56]} 12...
Bd7 {[%clk 0:02:27.4]} 13. b3 {[%clk 0:02:53]} 13... Bc6 {[%clk 0:02:26.9]} 14.
Bb2 {[%clk 0:02:53]} 14... Rac8 {[%clk 0:02:14.9]} 15. Rc1 {[%clk 0:02:52.6]}
15... Qa5 {[%clk 0:02:07.2]} 16. Rdd1 {[%clk 0:02:46.4]} 16... Rfd8 {[%clk
0:02:01.2]} 17. a3 {[%clk 0:02:46.1]} 17... Qh5 {[%clk 0:01:48.6]} 18. Bf3
{[%clk 0:02:45.1]} 18... Qg6 {[%clk 0:01:45.3]} 19. b4 {[%clk 0:02:41.1]} 19...
h5 {[%clk 0:01:44.2]} 20. h3 {[%clk 0:02:39.9]} 20... h4 {[%clk 0:01:43.3]} 21.
g4 {[%clk 0:02:40]} 21... Nh5 {[%clk 0:01:39]} 22. Bg2 {[%clk 0:02:31.5]} 22...
Nf4 {[%clk 0:01:38.7]} 23. Qf3 {[%clk 0:02:30.5]} 23... e5 {[%clk 0:01:35.2]}
24. Nd5 {[%clk 0:02:26.7]} 24... Bxd5 {[%clk 0:01:32.6]} 25. cxd5 {[%clk
0:02:27.6]} 25... Bg5 {[%clk 0:01:27.4]} 26. Rc3 {[%clk 0:01:54]} 26... Rxc3
{[%clk 0:01:26.6]} 27. Bxc3 {[%clk 0:01:54.9]} 27... Rc8 {[%clk 0:01:26.7]} 28.
Bd2 {[%clk 0:01:54.8]} 28... Qf6 {[%clk 0:01:24.2]} 29. Bxf4 {[%clk 0:01:54.3]}
29... Bxf4 {[%clk 0:01:23.3]} 30. Bf1 {[%clk 0:01:47.6]} 30... Qe7 {[%clk
0:01:08.9]} 31. b5 {[%clk 0:01:40.2]} 31... axb5 {[%clk 0:01:04.9]} 32. Bxb5
{[%clk 0:01:41.1]} 32... Rc5 {[%clk 0:01:04.4]} 33. a4 {[%clk 0:01:41.2]} 33...
Qc7 {[%clk 0:01:04.6]} 34. Kg2 {[%clk 0:01:40.4]} 34... Rc2 {[%clk 0:01:01]} 35.
Rf1 {[%clk 0:01:17.4]} 35... Qc5 {[%clk 0:00:56.8]} 36. Bd7 {[%clk 0:01:09.3]}
36... g6 {[%clk 0:00:55.5]} 37. Qb3 {[%clk 0:01:04.3]} 37... b6 {[%clk
0:00:50.3]} 38. Bb5 {[%clk 0:01:00.3]} 38... Kg7 {[%clk 0:00:48]} 39. Bc6 {[%clk
0:00:57.7]} 39... Rc3 {[%clk 0:00:42.5]} 40. Qb5 {[%clk 0:00:55.6]} 40... Qd4
{[%clk 0:00:41.2]} 41. Qe2 {[%clk 0:00:53.2]} 41... Qb4 {[%clk 0:00:39]} 42. Rd1
{[%clk 0:00:51.7]} 42... Qa3 {[%clk 0:00:37.8]} 43. Bb5 {[%clk 0:00:46.5]} 43...
Rxh3 {[%clk 0:00:34.3]} 44. Rd3 {[%clk 0:00:46.8]} 44... Rh2+ {[%clk 0:00:24.8]}
45. Kf3 {[%clk 0:00:45.2]} 45... Qc1 {[%clk 0:00:23.1]} 46. Rd1 {[%clk
0:00:43.6]} 46... Qc5 {[%clk 0:00:23.5]} 47. Rd3 {[%clk 0:00:33.4]} 47... Rh1
{[%clk 0:00:19.4]} 48. Rd1 {[%clk 0:00:32.8]} 48... Rh3+ {[%clk 0:00:18]} 49.
Kg2 {[%clk 0:00:32.5]} 49... Rc3 {[%clk 0:00:17.8]} 50. Rd3 {[%clk 0:00:32.4]}
50... h3+ {[%clk 0:00:18.2]} 51. Kxh3 {[%clk 0:00:31.5]} 51... Rc1 {[%clk
0:00:17.8]} 52. Kg2 {[%clk 0:00:30.3]} 52... Rc2 {[%clk 0:00:15.6]} 53. Qf3
{[%clk 0:00:28.7]} 53... Rc1 {[%clk 0:00:15.7]} 54. Rd1 {[%clk 0:00:27.6]} 54...
Rc3 {[%clk 0:00:14.9]} 55. Rd3 {[%clk 0:00:27.7]} 55... Rc2 {[%clk 0:00:15.6]}
56. Rd1 {[%clk 0:00:25.1]} 56... Qc8 {[%clk 0:00:15.9]} 57. Rd3 {[%clk
0:00:22.8]} 57... Qd8 {[%clk 0:00:16]} 58. Rc3 {[%clk 0:00:21]} 58... Rd2 {[%clk
0:00:14.6]} 59. Rd3 {[%clk 0:00:21]} 59... Rb2 {[%clk 0:00:14.1]} 60. Rb3 {[%clk
0:00:20.9]} 60... Rc2 {[%clk 0:00:13.1]} 61. Rc3 {[%clk 0:00:21.2]} 61... Rxc3
{[%clk 0:00:13.2]} 62. Qxc3 {[%clk 0:00:22.1]} 62... Qg5 {[%clk 0:00:13]} 63.
Qf3 {[%clk 0:00:21.8]} 63... Qh4 {[%clk 0:00:13.2]} 64. Qh3 {[%clk 0:00:20.6]}
64... Qg5 {[%clk 0:00:13.4]} 65. Qf3 {[%clk 0:00:20.6]} 65... Bd2 {[%clk
0:00:13.3]} 66. Bd3 {[%clk 0:00:19]} 66... Bf4 {[%clk 0:00:13.7]} 67. Bb5 {[%clk
0:00:18.6]} 1/2-1/2

[Event "Late-Titled-Tuesday-Blitz-March-26-2024"]
[Site "Chess.com"]
[Date "2024.03.26"]
[Round "11"]
[White "ImportedItalianMaple"]
[Black "Romkachess"]
[Result "1/2-1/2"]
[WhiteElo "2526"]
[BlackElo "2677"]
[TimeControl "180+1"]
[EndTime "16:05:08 PDT"]
[Termination "Game drawn - timeout vs insufficient material"]

1. Nf3 {[%clk 0:03:00.9]} 1... Nf6 {[%clk 0:02:59.5]} 2. g3 {[%clk 0:03:01.2]}
2... e6 {[%clk 0:02:58.1]} 3. Bg2 {[%clk 0:03:01.3]} 3... b6 {[%clk 0:02:57.4]}
4. O-O {[%clk 0:02:57.4]} 4... Bb7 {[%clk 0:02:57.3]} 5. c4 {[%clk 0:02:57.2]}
5... Be7 {[%clk 0:02:50.5]} 6. b3 {[%clk 0:02:52.8]} 6... O-O {[%clk 0:02:50.2]}
7. Bb2 {[%clk 0:02:52.4]} 7... c5 {[%clk 0:02:50.3]} 8. d4 {[%clk 0:02:52.3]}
8... cxd4 {[%clk 0:02:50]} 9. Qxd4 {[%clk 0:02:53.2]} 9... Nc6 {[%clk
0:02:49.9]} 10. Qf4 {[%clk 0:02:53.7]} 10... d5 {[%clk 0:02:49]} 11. Rd1 {[%clk
0:02:49.3]} 11... Qb8 {[%clk 0:02:49]} 12. Qxb8 {[%clk 0:02:34.7]} 12... Raxb8
{[%clk 0:02:48.8]} 13. cxd5 {[%clk 0:02:32.5]} 13... Nxd5 {[%clk 0:02:49.7]} 14.
Nc3 {[%clk 0:02:33]} 14... Nxc3 {[%clk 0:02:48.2]} 15. Bxc3 {[%clk 0:02:33.9]}
15... Nb4 {[%clk 0:02:15.6]} 16. Rd7 {[%clk 0:02:27.4]} 16... Bc5 {[%clk
0:02:14.3]} 17. Ne5 {[%clk 0:01:56.9]} 17... Bxg2 {[%clk 0:02:12.7]} 18. Kxg2
{[%clk 0:01:57.8]} 18... Nd5 {[%clk 0:02:08.3]} 19. Bb2 {[%clk 0:01:51.2]} 19...
a5 {[%clk 0:02:08.4]} 20. Nd3 {[%clk 0:01:41.5]} 20... Rfd8 {[%clk 0:01:50.6]}
21. Nxc5 {[%clk 0:01:24.5]} 21... bxc5 {[%clk 0:01:51.5]} 22. Rxd8+ {[%clk
0:01:25.1]} 22... Rxd8 {[%clk 0:01:50.3]} 23. Rc1 {[%clk 0:01:26]} 23... Rc8
{[%clk 0:01:42.7]} 24. Bd4 {[%clk 0:01:17.3]} 24... Nb4 {[%clk 0:01:37.2]} 25.
Rxc5 {[%clk 0:00:34.2]} 25... Rxc5 {[%clk 0:01:36.1]} 26. Bxc5 {[%clk
0:00:35.1]} 26... Nxa2 {[%clk 0:01:36.6]} 27. Be3 {[%clk 0:00:22]} 27... Nb4
{[%clk 0:01:26]} 28. Bb6 {[%clk 0:00:19]} 28... Nc6 {[%clk 0:01:11.6]} 29. Kf3
{[%clk 0:00:17.4]} 29... Kf8 {[%clk 0:00:52.7]} 30. Ke4 {[%clk 0:00:17.1]} 30...
Ke7 {[%clk 0:00:46.1]} 31. Kd3 {[%clk 0:00:17.6]} 31... Kd7 {[%clk 0:00:29.3]}
32. Kc4 {[%clk 0:00:17.7]} 32... a4 {[%clk 0:00:25.4]} 33. bxa4 {[%clk
0:00:17.2]} 33... Ne5+ {[%clk 0:00:25.5]} 34. Kb5 {[%clk 0:00:16.5]} 34... Kc8
{[%clk 0:00:22.1]} 35. f3 {[%clk 0:00:12.7]} 35... f6 {[%clk 0:00:11.2]} 36. a5
{[%clk 0:00:10.5]} 36... Kb7 {[%clk 0:00:11.2]} 37. Kc5 {[%clk 0:00:09.8]} 37...
Nf7 {[%clk 0:00:08]} 38. Kb5 {[%clk 0:00:07.9]} 38... Nd6+ {[%clk 0:00:07.6]}
39. Kc5 {[%clk 0:00:07.2]} 39... Nf7 {[%clk 0:00:08.5]} 40. e4 {[%clk 0:00:07]}
40... h5 {[%clk 0:00:05.8]} 41. f4 {[%clk 0:00:06.7]} 41... Nh6 {[%clk
0:00:03.6]} 42. Kd6 {[%clk 0:00:06.6]} 42... Ng4 {[%clk 0:00:03.6]} 43. Kxe6
{[%clk 0:00:06.7]} 43... Nxh2 {[%clk 0:00:04]} 44. Kf7 {[%clk 0:00:06.9]} 44...
Nf1 {[%clk 0:00:03]} 45. Bf2 {[%clk 0:00:05.4]} 45... Nd2 {[%clk 0:00:02.9]} 46.
e5 {[%clk 0:00:05.2]} 46... fxe5 {[%clk 0:00:03.8]} 47. fxe5 {[%clk 0:00:06.1]}
47... Ne4 {[%clk 0:00:04.2]} 48. e6 {[%clk 0:00:05.7]} 48... Ng5+ {[%clk
0:00:03.1]} 49. Ke7 {[%clk 0:00:04.4]} 49... Ne4 {[%clk 0:00:03.3]} 50. Be1
{[%clk 0:00:04.2]} 50... g5 {[%clk 0:00:03]} 51. Kf7 {[%clk 0:00:03.7]} 51...
Nd6+ {[%clk 0:00:02.9]} 52. Kf6 {[%clk 0:00:03.5]} 52... h4 {[%clk 0:00:02.6]}
53. gxh4 {[%clk 0:00:03.4]} 53... gxh4 {[%clk 0:00:03.5]} 54. Bxh4 {[%clk
0:00:04.1]} 54... Ne8+ {[%clk 0:00:03.5]} 55. Ke7 {[%clk 0:00:03.5]} 55... Nc7
{[%clk 0:00:03.9]} 1/2-1/2

[Event "Late-Titled-Tuesday-Blitz-March-26-2024"]
[Site "Chess.com"]
[Date "2024.03.26"]
[Round "11"]
[White "zverr1"]
[Black "ploxoi"]
[Result "1-0"]
[WhiteElo "2556"]
[BlackElo "2432"]
[TimeControl "180+1"]
[EndTime "16:05:13 PDT"]
[Termination "zverr1 won by checkmate"]

1. e4 {[%clk 0:03:00.9]} 1... c6 {[%clk 0:02:59.1]} 2. d4 {[%clk 0:03:00.7]}
2... d5 {[%clk 0:02:58.8]} 3. Nc3 {[%clk 0:03:01.4]} 3... dxe4 {[%clk 0:02:59]}
4. Nxe4 {[%clk 0:03:02.3]} 4... Nf6 {[%clk 0:02:59.6]} 5. Nxf6+ {[%clk
0:03:02.7]} 5... exf6 {[%clk 0:03:00.5]} 6. Bc4 {[%clk 0:03:03.3]} 6... Bd6
{[%clk 0:03:01.2]} 7. Qe2+ {[%clk 0:03:03.9]} 7... Qe7 {[%clk 0:03:00]} 8. Qxe7+
{[%clk 0:03:04.1]} 8... Kxe7 {[%clk 0:03:00.7]} 9. Ne2 {[%clk 0:03:04.8]} 9...
Nd7 {[%clk 0:02:59.9]} 10. Bd3 {[%clk 0:03:02.6]} 10... Nb6 {[%clk 0:02:58]} 11.
c3 {[%clk 0:02:56.9]} 11... Be6 {[%clk 0:02:56.2]} 12. Nf4 {[%clk 0:02:55.2]}
12... Rhe8 {[%clk 0:02:54.7]} 13. O-O {[%clk 0:02:42.6]} 13... Kf8 {[%clk
0:02:52.4]} 14. Bd2 {[%clk 0:02:41]} 14... Bc4 {[%clk 0:02:50.6]} 15. Rfd1
{[%clk 0:02:21.6]} 15... Bxd3 {[%clk 0:02:45.6]} 16. Nxd3 {[%clk 0:02:21.3]}
16... Nc4 {[%clk 0:02:44.4]} 17. b3 {[%clk 0:02:19.6]} 17... Nxd2 {[%clk
0:02:44.3]} 18. Rxd2 {[%clk 0:02:20.5]} 18... Re4 {[%clk 0:02:43.9]} 19. f3
{[%clk 0:02:18.3]} 19... Re3 {[%clk 0:02:44.1]} 20. Kf2 {[%clk 0:02:15]} 20...
Rae8 {[%clk 0:02:44.6]} 21. g3 {[%clk 0:02:05.5]} 21... f5 {[%clk 0:02:39]} 22.
Rc1 {[%clk 0:01:53.1]} 22... g6 {[%clk 0:02:37.7]} 23. Ne5 {[%clk 0:01:50]}
23... R3xe5 {[%clk 0:02:14.7]} 24. dxe5 {[%clk 0:01:48.8]} 24... Bc5+ {[%clk
0:02:11.8]} 25. Kg2 {[%clk 0:01:25]} 25... Be3 {[%clk 0:02:09.8]} 26. Rcd1
{[%clk 0:01:22.1]} 26... Bxd2 {[%clk 0:02:09.3]} 27. Rxd2 {[%clk 0:01:23]} 27...
Rxe5 {[%clk 0:02:09.4]} 28. Kf2 {[%clk 0:01:18]} 28... Ke7 {[%clk 0:02:07.2]}
29. Rd4 {[%clk 0:01:14.6]} 29... Ra5 {[%clk 0:02:06.4]} 30. a4 {[%clk 0:01:12]}
30... Rc5 {[%clk 0:02:06.8]} 31. c4 {[%clk 0:01:11.4]} 31... a5 {[%clk 0:02:06]}
32. f4 {[%clk 0:01:10.5]} 32... b5 {[%clk 0:02:04.9]} 33. cxb5 {[%clk
0:00:43.9]} 33... cxb5 {[%clk 0:02:04.6]} 34. b4 {[%clk 0:00:34.1]} 34... Rc2+
{[%clk 0:02:00.1]} 35. Kf3 {[%clk 0:00:32.2]} 35... bxa4 {[%clk 0:01:58.3]} 36.
bxa5 {[%clk 0:00:31.8]} 36... a3 {[%clk 0:01:52.6]} 37. Ra4 {[%clk 0:00:31.6]}
37... Rc3+ {[%clk 0:01:48.7]} 38. Kg2 {[%clk 0:00:30.9]} 38... Rc2+ {[%clk
0:01:41.7]} 39. Kf3 {[%clk 0:00:31]} 39... Rc3+ {[%clk 0:01:41.2]} 40. Kf2
{[%clk 0:00:31.6]} 40... Rc2+ {[%clk 0:01:41.6]} 41. Ke3 {[%clk 0:00:32.1]}
41... Rc7 {[%clk 0:01:33]} 42. a6 {[%clk 0:00:30.4]} 42... Ra7 {[%clk
0:01:32.6]} 43. Kd4 {[%clk 0:00:30.6]} 43... Kd6 {[%clk 0:01:32.9]} 44. Rxa3
{[%clk 0:00:30.9]} 44... f6 {[%clk 0:01:32.1]} 45. Ra1 {[%clk 0:00:22.8]} 45...
Kc6 {[%clk 0:01:30.9]} 46. Rc1+ {[%clk 0:00:22.4]} 46... Kb6 {[%clk 0:01:30.3]}
47. Kd5 {[%clk 0:00:21.5]} 47... Rd7+ {[%clk 0:01:24.7]} 48. Ke6 {[%clk
0:00:21.6]} 48... Rd2 {[%clk 0:01:24.1]} 49. a7 {[%clk 0:00:18.8]} 49... Kxa7
{[%clk 0:01:23.7]} 50. Rc7+ {[%clk 0:00:18.6]} 50... Kb6 {[%clk 0:01:23.9]} 51.
Rxh7 {[%clk 0:00:19.5]} 51... g5 {[%clk 0:01:22.7]} 52. fxg5 {[%clk 0:00:16.9]}
52... fxg5 {[%clk 0:01:21.7]} 53. Kxf5 {[%clk 0:00:17.6]} 53... Rd5+ {[%clk
0:01:22.1]} 54. Kg4 {[%clk 0:00:17.5]} 54... Kc5 {[%clk 0:01:22.4]} 55. Rg7
{[%clk 0:00:17.4]} 55... Rd2 {[%clk 0:01:21.2]} 56. Rxg5+ {[%clk 0:00:18.1]}
56... Kd6 {[%clk 0:01:19.5]} 57. h4 {[%clk 0:00:17.8]} 57... Ke6 {[%clk
0:01:20.2]} 58. Ra5 {[%clk 0:00:16.8]} 58... Rd4+ {[%clk 0:01:20.5]} 59. Kh5
{[%clk 0:00:16.1]} 59... Kf6 {[%clk 0:01:18.6]} 60. g4 {[%clk 0:00:15.8]} 60...
Rd8 {[%clk 0:01:18.4]} 61. Ra6+ {[%clk 0:00:15.6]} 61... Kf7 {[%clk 0:01:18.3]}
62. g5 {[%clk 0:00:14.3]} 62... Kg7 {[%clk 0:01:17.9]} 63. Ra7+ {[%clk
0:00:14.3]} 63... Kg8 {[%clk 0:01:15.7]} 64. Kh6 {[%clk 0:00:15.2]} 64... Rd6+
{[%clk 0:01:14.5]} 65. g6 {[%clk 0:00:15.1]} 65... Rd8 {[%clk 0:01:14.5]} 66.
Rg7+ {[%clk 0:00:14.4]} 66... Kh8 {[%clk 0:01:14.2]} 67. Ra7 {[%clk 0:00:14]}
67... Kg8 {[%clk 0:01:14.4]} 68. h5 {[%clk 0:00:13.6]} 68... Kh8 {[%clk
0:01:12.9]} 69. Kg5 {[%clk 0:00:14]} 69... Rd5+ {[%clk 0:01:12.6]} 70. Kf6
{[%clk 0:00:14.3]} 70... Rd6+ {[%clk 0:01:11.8]} 71. Ke7 {[%clk 0:00:11.4]}
71... Rd5 {[%clk 0:01:11.8]} 72. h6 {[%clk 0:00:10.2]} 72... Re5+ {[%clk
0:01:08.5]} 73. Kf6 {[%clk 0:00:09.2]} 73... Re8 {[%clk 0:01:05.7]} 74. Re7
{[%clk 0:00:05.2]} 74... Rf8+ {[%clk 0:01:04.8]} 75. Rf7 {[%clk 0:00:05.6]}
75... Rg8 {[%clk 0:00:59]} 76. g7+ {[%clk 0:00:01.4]} 76... Kh7 {[%clk
0:00:58.6]} 77. Rf8 {[%clk 0:00:01.8]} 77... Rxg7 {[%clk 0:00:53]} 78. hxg7
{[%clk 0:00:01.4]} 78... Kh6 {[%clk 0:00:52.8]} 79. Rh8# {[%clk 0:00:02.3]} 1-0